[Event "Late-Titled-Tuesday-Blitz-March-19-2024"]
[Site "Chess.com"]
[Date "2024.03.19"]
[Round "2"]
[White "dcremisi"]
[Black "VincentKeymer"]
[Result "1-0"]
[WhiteElo "2671"]
[BlackElo "3042"]
[TimeControl "180+1"]
[EndTime "14:19:13 PDT"]
[Termination "dcremisi won by resignation"]

1. d4 {[%clk 0:03:00.9]} 1... Nf6 {[%clk 0:02:59.8]} 2. c4 {[%clk 0:03:00.1]}
2... e6 {[%clk 0:03:00.3]} 3. Nf3 {[%clk 0:03:00.3]} 3... b6 {[%clk 0:03:00.1]}
4. g3 {[%clk 0:02:59.1]} 4... Ba6 {[%clk 0:02:59.3]} 5. Qc2 {[%clk 0:02:58.5]}
5... Bb7 {[%clk 0:02:58]} 6. Bg2 {[%clk 0:02:58.8]} 6... Bb4+ {[%clk 0:02:58.6]}
7. Bd2 {[%clk 0:02:58.7]} 7... a5 {[%clk 0:02:58.3]} 8. O-O {[%clk 0:02:58.1]}
8... O-O {[%clk 0:02:58.2]} 9. a3 {[%clk 0:02:58.3]} 9... Bxd2 {[%clk
0:02:53.1]} 10. Qxd2 {[%clk 0:02:58.5]} 10... d6 {[%clk 0:02:44.9]} 11. Nc3
{[%clk 0:02:58.2]} 11... Ne4 {[%clk 0:02:44.5]} 12. Nxe4 {[%clk 0:02:57.9]}
12... Bxe4 {[%clk 0:02:44.3]} 13. Ne1 {[%clk 0:02:51.4]} 13... Bxg2 {[%clk
0:02:43.4]} 14. Nxg2 {[%clk 0:02:52.3]} 14... a4 {[%clk 0:02:41.4]} 15. Nf4
{[%clk 0:02:48.1]} 15... Nc6 {[%clk 0:02:38.2]} 16. e3 {[%clk 0:02:48.1]} 16...
Qd7 {[%clk 0:02:28.3]} 17. Rad1 {[%clk 0:02:45.5]} 17... Rfe8 {[%clk 0:02:21.2]}
18. Qc3 {[%clk 0:02:44.5]} 18... h6 {[%clk 0:02:18.6]} 19. d5 {[%clk 0:02:38.9]}
19... Na5 {[%clk 0:02:04.2]} 20. dxe6 {[%clk 0:02:29.1]} 20... fxe6 {[%clk
0:02:04.2]} 21. c5 {[%clk 0:02:21.2]} 21... bxc5 {[%clk 0:02:03]} 22. Qxc5
{[%clk 0:02:21.1]} 22... Nb3 {[%clk 0:01:58.8]} 23. Qc2 {[%clk 0:02:19.3]} 23...
Rac8 {[%clk 0:01:50.6]} 24. Ne2 {[%clk 0:02:18.1]} 24... c5 {[%clk 0:01:45]} 25.
Nc1 {[%clk 0:02:17.2]} 25... c4 {[%clk 0:01:44.2]} 26. Nxb3 {[%clk 0:02:13.8]}
26... cxb3 {[%clk 0:01:39.4]} 27. Qd3 {[%clk 0:02:13.1]} 27... Rc2 {[%clk
0:01:37.7]} 28. Rd2 {[%clk 0:02:13.3]} 28... Rec8 {[%clk 0:01:37.1]} 29. Rfd1
{[%clk 0:02:11.4]} 29... d5 {[%clk 0:01:35]} 30. e4 {[%clk 0:02:07.6]} 30... d4
{[%clk 0:01:34]} 31. Rxc2 {[%clk 0:01:43.4]} 31... bxc2 {[%clk 0:01:15.1]} 32.
Rc1 {[%clk 0:01:42.5]} 32... Qc7 {[%clk 0:01:15.6]} 33. Qxd4 {[%clk 0:01:41.7]}
33... Qc6 {[%clk 0:01:06.8]} 34. Qd3 {[%clk 0:01:18.8]} 34... Qc5 {[%clk
0:01:03.3]} 35. Kg2 {[%clk 0:01:11.4]} 35... Kh8 {[%clk 0:01:02.3]} 36. h4
{[%clk 0:01:08.3]} 36... e5 {[%clk 0:00:56.1]} 37. Qd7 {[%clk 0:00:58.1]} 37...
Qc4 {[%clk 0:00:46.4]} 38. Qd5 {[%clk 0:00:53]} 38... Qc7 {[%clk 0:00:33.9]} 39.
Qd3 {[%clk 0:00:45.1]} 39... Qc6 {[%clk 0:00:24.5]} 40. Qd5 {[%clk 0:00:43.9]}
40... Qc7 {[%clk 0:00:20.2]} 41. Qd3 {[%clk 0:00:43]} 41... Qc5 {[%clk
0:00:20.7]} 42. Qd5 {[%clk 0:00:40.4]} 42... Qd4 {[%clk 0:00:20.8]} 43. Qxd4
{[%clk 0:00:30.9]} 43... exd4 {[%clk 0:00:20.8]} 44. Kf3 {[%clk 0:00:30.1]}
44... d3 {[%clk 0:00:13.7]} 45. Ke3 {[%clk 0:00:30]} 45... Rd8 {[%clk
0:00:14.6]} 46. Kd2 {[%clk 0:00:29.1]} 46... h5 {[%clk 0:00:09.2]} 47. f4 {[%clk
0:00:28.2]} 47... Kg8 {[%clk 0:00:10.1]} 48. f5 {[%clk 0:00:24.8]} 48... Kf7
{[%clk 0:00:10.2]} 49. e5 {[%clk 0:00:21.5]} 49... Rd5 {[%clk 0:00:10.4]} 50.
Re1 {[%clk 0:00:21.3]} 50... Ke7 {[%clk 0:00:10.8]} 51. Re3 {[%clk 0:00:19.3]}
51... Rc5 {[%clk 0:00:10.4]} 52. Re1 {[%clk 0:00:19.2]} 52... Kf7 {[%clk
0:00:09.3]} 53. Kc1 {[%clk 0:00:18.3]} 53... Ke8 {[%clk 0:00:08.6]} 54. Kd2
{[%clk 0:00:18.2]} 54... Ke7 {[%clk 0:00:08.6]} 55. Kc1 {[%clk 0:00:18.3]} 55...
Rb5 {[%clk 0:00:09.1]} 56. Re3 {[%clk 0:00:17]} 56... Rd5 {[%clk 0:00:08.7]} 57.
Kd2 {[%clk 0:00:16.2]} 57... Kd7 {[%clk 0:00:06.4]} 58. Re1 {[%clk 0:00:14.4]}
58... Ke8 {[%clk 0:00:06.7]} 59. Re3 {[%clk 0:00:14.2]} 59... Kf7 {[%clk
0:00:07.3]} 60. Re1 {[%clk 0:00:14.2]} 60... g6 {[%clk 0:00:07.5]} 61. e6+
{[%clk 0:00:13.7]} 61... Ke7 {[%clk 0:00:05.4]} 62. fxg6 {[%clk 0:00:13.7]}
62... Rc5 {[%clk 0:00:04.8]} 63. g7 {[%clk 0:00:13.5]} 63... Rc8 {[%clk
0:00:04.8]} 64. Kxd3 {[%clk 0:00:13.8]} 64... Rd8+ {[%clk 0:00:02.6]} 65. Kxc2
{[%clk 0:00:13.3]} 1-0

[Event "Late-Titled-Tuesday-Blitz-March-19-2024"]
[Site "Chess.com"]
[Date "2024.03.19"]
[Round "2"]
[White "MikaelyanArman"]
[Black "dolynachess"]
[Result "1-0"]
[WhiteElo "2846"]
[BlackElo "2516"]
[TimeControl "180+1"]
[EndTime "14:19:17 PDT"]
[Termination "MikaelyanArman won on time"]

1. Nf3 {[%clk 0:03:00.9]} 1... Nf6 {[%clk 0:02:59.3]} 2. c4 {[%clk 0:03:01.1]}
2... g6 {[%clk 0:02:59.5]} 3. d4 {[%clk 0:02:59.3]} 3... c5 {[%clk 0:02:59.7]}
4. d5 {[%clk 0:02:58.5]} 4... b5 {[%clk 0:03:00]} 5. cxb5 {[%clk 0:02:58.5]}
5... a6 {[%clk 0:03:00.3]} 6. bxa6 {[%clk 0:02:58.9]} 6... Bg7 {[%clk 0:02:59]}
7. a7 {[%clk 0:02:54.5]} 7... Rxa7 {[%clk 0:02:58.6]} 8. Nc3 {[%clk 0:02:54.9]}
8... O-O {[%clk 0:02:57.1]} 9. e4 {[%clk 0:02:52.9]} 9... Qa5 {[%clk 0:02:54.6]}
10. Bd2 {[%clk 0:02:53.3]} 10... Ra8 {[%clk 0:02:52.2]} 11. Bd3 {[%clk
0:02:36.4]} 11... Ba6 {[%clk 0:02:51.8]} 12. Nb5 {[%clk 0:02:21.3]} 12... Qb6
{[%clk 0:02:50.6]} 13. a4 {[%clk 0:02:21.1]} 13... d6 {[%clk 0:02:41.3]} 14. O-O
{[%clk 0:02:17.5]} 14... Nbd7 {[%clk 0:02:37.1]} 15. Bc3 {[%clk 0:02:14.8]}
15... Rfb8 {[%clk 0:02:37]} 16. Re1 {[%clk 0:02:12.7]} 16... Ne8 {[%clk
0:02:36.2]} 17. Bxg7 {[%clk 0:02:10.1]} 17... Kxg7 {[%clk 0:02:37.1]} 18. Qd2
{[%clk 0:02:08.9]} 18... Nc7 {[%clk 0:02:35.3]} 19. Nxc7 {[%clk 0:01:03.7]}
19... Qxc7 {[%clk 0:02:29.2]} 20. h4 {[%clk 0:00:54.3]} 20... Rb4 {[%clk
0:02:12]} 21. h5 {[%clk 0:00:50.6]} 21... Bxd3 {[%clk 0:02:03.8]} 22. h6+ {[%clk
0:00:48.1]} 22... Kg8 {[%clk 0:02:00.3]} 23. Qxd3 {[%clk 0:00:49]} 23... Raxa4
{[%clk 0:01:50.7]} 24. Rxa4 {[%clk 0:00:48.8]} 24... Rxa4 {[%clk 0:01:51.6]} 25.
Qc3 {[%clk 0:00:49.4]} 25... f6 {[%clk 0:01:51.1]} 26. Rc1 {[%clk 0:00:28.5]}
26... Rxe4 {[%clk 0:01:24.9]} 27. Ng5 {[%clk 0:00:28.2]} 27... Re5 {[%clk
0:01:24.5]} 28. Ne6 {[%clk 0:00:28.7]} 28... Qb7 {[%clk 0:01:17.4]} 29. Nf4
{[%clk 0:00:27.6]} 29... g5 {[%clk 0:01:02.1]} 30. Nh5 {[%clk 0:00:18.6]} 30...
Qxd5 {[%clk 0:00:59.2]} 31. Ra1 {[%clk 0:00:18.6]} 31... Kf7 {[%clk 0:00:57.6]}
32. Qh3 {[%clk 0:00:13.9]} 32... Nf8 {[%clk 0:00:51.8]} 33. Ng7 {[%clk
0:00:14.2]} 33... Qb7 {[%clk 0:00:27.8]} 34. Qd3 {[%clk 0:00:11.3]} 34... Qxb2
{[%clk 0:00:22.9]} 35. Rb1 {[%clk 0:00:11.7]} 35... Qd4 {[%clk 0:00:20.8]} 36.
Qb3+ {[%clk 0:00:10.4]} 36... c4 {[%clk 0:00:19.7]} 37. Qb8 {[%clk 0:00:11.1]}
37... Kg8 {[%clk 0:00:05.5]} 38. Qe8 {[%clk 0:00:10.4]} 38... Qd3 {[%clk
0:00:04.8]} 39. Rf1 {[%clk 0:00:09.6]} 39... Qg6 {[%clk 0:00:04.5]} 40. Qc6
{[%clk 0:00:09.8]} 40... Qxh6 {[%clk 0:00:03.7]} 41. Ne8 {[%clk 0:00:10.5]}
41... Qg6 {[%clk 0:00:03]} 42. Qxc4+ {[%clk 0:00:10.2]} 42... d5 {[%clk
0:00:03.3]} 43. Qc8 {[%clk 0:00:10.2]} 43... h5 {[%clk 0:00:02.4]} 44. Nc7
{[%clk 0:00:10.8]} 44... h4 {[%clk 0:00:02.2]} 45. Ra1 {[%clk 0:00:09.7]} 45...
Qf5 {[%clk 0:00:02.4]} 46. Qe8 {[%clk 0:00:08.9]} 46... Re2 {[%clk 0:00:01.6]}
47. Rf1 {[%clk 0:00:08.3]} 47... d4 {[%clk 0:00:01.5]} 48. Qd8 {[%clk
0:00:05.7]} 48... d3 {[%clk 0:00:02.4]} 49. Nd5 {[%clk 0:00:04.6]} 49... Qe5
{[%clk 0:00:01.4]} 50. Ne3 {[%clk 0:00:04]} 50... d2 {[%clk 0:00:02.3]} 51. Ng4
{[%clk 0:00:03.7]} 51... Qe4 {[%clk 0:00:02.1]} 52. Nh6+ {[%clk 0:00:02.7]}
52... Kg7 {[%clk 0:00:02.5]} 53. Qe8 {[%clk 0:00:03.5]} 53... Kxh6 {[%clk
0:00:01.4]} 54. Qxf8+ {[%clk 0:00:04.1]} 54... Kg6 {[%clk 0:00:02.3]} 55. Qg8+
{[%clk 0:00:04.8]} 55... Kf5 {[%clk 0:00:02.9]} 56. Qh7+ {[%clk 0:00:05]} 56...
Ke5 {[%clk 0:00:03.5]} 57. Qxe7+ {[%clk 0:00:05.3]} 57... Kf5 {[%clk 0:00:03.5]}
58. Qh7+ {[%clk 0:00:05.7]} 58... Ke5 {[%clk 0:00:04]} 59. Qe7+ {[%clk
0:00:05.9]} 59... Kf5 {[%clk 0:00:04.4]} 60. Qh7+ {[%clk 0:00:04.6]} 60... Kf4
{[%clk 0:00:04.8]} 61. Qc7+ {[%clk 0:00:04.4]} 61... Kg4 {[%clk 0:00:04.2]} 62.
Qd7+ {[%clk 0:00:04.4]} 62... f5 {[%clk 0:00:04.5]} 63. f3+ {[%clk 0:00:03]}
63... Kg3 {[%clk 0:00:01.6]} 64. fxe4 {[%clk 0:00:02.3]} 1-0

[Event "Late-Titled-Tuesday-Blitz-March-19-2024"]
[Site "Chess.com"]
[Date "2024.03.19"]
[Round "2"]
[White "Taran2004"]
[Black "CuteSheepCloud"]
[Result "0-1"]
[WhiteElo "2398"]
[BlackElo "2649"]
[TimeControl "180+1"]
[EndTime "14:19:18 PDT"]
[Termination "CuteSheepCloud won by checkmate"]

1. e4 {[%clk 0:03:00.9]} 1... e5 {[%clk 0:02:59.3]} 2. Nf3 {[%clk 0:03:00.3]}
2... Nc6 {[%clk 0:02:59.2]} 3. d4 {[%clk 0:03:00.5]} 3... exd4 {[%clk
0:02:59.3]} 4. Nxd4 {[%clk 0:03:01]} 4... Nf6 {[%clk 0:02:59.6]} 5. Nxc6 {[%clk
0:03:01.1]} 5... bxc6 {[%clk 0:03:00.3]} 6. e5 {[%clk 0:03:01.8]} 6... Qe7
{[%clk 0:03:00.5]} 7. Qe2 {[%clk 0:03:02.5]} 7... Nd5 {[%clk 0:03:00.7]} 8. h4
{[%clk 0:03:03.2]} 8... Qe6 {[%clk 0:02:59.4]} 9. c4 {[%clk 0:02:53.5]} 9... Nb6
{[%clk 0:02:59.2]} 10. Nc3 {[%clk 0:02:49.4]} 10... g6 {[%clk 0:02:54.1]} 11.
Rh3 {[%clk 0:02:43.3]} 11... Bg7 {[%clk 0:02:53.3]} 12. Re3 {[%clk 0:02:43.5]}
12... O-O {[%clk 0:02:53.7]} 13. b3 {[%clk 0:02:41.1]} 13... d6 {[%clk
0:02:48.2]} 14. Bb2 {[%clk 0:02:34.5]} 14... dxe5 {[%clk 0:02:45.1]} 15. O-O-O
{[%clk 0:02:32.5]} 15... Bh6 {[%clk 0:02:44.9]} 16. g3 {[%clk 0:02:30.3]} 16...
Bxe3+ {[%clk 0:02:40.2]} 17. Qxe3 {[%clk 0:02:31.2]} 17... Ba6 {[%clk
0:02:33.1]} 18. Bg2 {[%clk 0:02:28.4]} 18... Rad8 {[%clk 0:02:32.4]} 19. Re1
{[%clk 0:02:27.4]} 19... Bxc4 {[%clk 0:02:25.8]} 20. bxc4 {[%clk 0:02:17.4]}
20... Nxc4 {[%clk 0:02:26.7]} 21. Qh6 {[%clk 0:02:17.6]} 21... Nxb2 {[%clk
0:01:54.2]} 22. Kxb2 {[%clk 0:02:18.5]} 22... Rb8+ {[%clk 0:01:54.3]} 23. Kc2
{[%clk 0:02:16.6]} 23... Rfd8 {[%clk 0:01:36.6]} 24. Qe3 {[%clk 0:02:11.2]}
24... Qc4 {[%clk 0:01:23]} 25. Bf1 {[%clk 0:01:55.4]} 25... Qb4 {[%clk
0:01:21.6]} 26. Rb1 {[%clk 0:01:54.4]} 26... Qa3 {[%clk 0:01:18.1]} 27. Bc4
{[%clk 0:01:48.1]} 27... Rxb1 {[%clk 0:01:08.9]} 28. Nxb1 {[%clk 0:01:47.4]}
28... Qb4 {[%clk 0:01:05.3]} 29. Bb3 {[%clk 0:01:44.4]} 29... a5 {[%clk
0:01:01.6]} 30. Nc3 {[%clk 0:01:32.2]} 30... c5 {[%clk 0:00:49.8]} 31. Qe4
{[%clk 0:01:26.2]} 31... Qd4 {[%clk 0:00:29.1]} 32. Qxd4 {[%clk 0:01:22.1]}
32... cxd4 {[%clk 0:00:30]} 33. Ne4 {[%clk 0:01:20.6]} 33... Kg7 {[%clk
0:00:29.7]} 34. Ng5 {[%clk 0:01:16.8]} 34... Rd7 {[%clk 0:00:29.1]} 35. Kd3
{[%clk 0:01:16.7]} 35... h6 {[%clk 0:00:27.9]} 36. Nf3 {[%clk 0:01:12.2]} 36...
f6 {[%clk 0:00:26.1]} 37. g4 {[%clk 0:01:11]} 37... Re7 {[%clk 0:00:23]} 38. Ke4
{[%clk 0:01:06.8]} 38... h5 {[%clk 0:00:22.9]} 39. gxh5 {[%clk 0:01:05.3]} 39...
f5+ {[%clk 0:00:21.8]} 40. Kd5 {[%clk 0:01:03.6]} 40... gxh5 {[%clk 0:00:19.3]}
41. Nxe5 {[%clk 0:01:03]} 41... c5 {[%clk 0:00:19.5]} 42. Nd3 {[%clk 0:00:57.4]}
42... Kf6 {[%clk 0:00:15.5]} 43. Kxc5 {[%clk 0:00:56.9]} 43... Re4 {[%clk
0:00:14.4]} 44. f4 {[%clk 0:00:57.2]} 44... Re3 {[%clk 0:00:13.3]} 45. Kxd4
{[%clk 0:00:57.1]} 45... Rh3 {[%clk 0:00:14]} 46. Ne5 {[%clk 0:00:49.6]} 46...
Rxh4 {[%clk 0:00:14.9]} 47. Ke3 {[%clk 0:00:50]} 47... Rh3+ {[%clk 0:00:15.2]}
48. Nf3 {[%clk 0:00:50.4]} 48... Rh1 {[%clk 0:00:14.7]} 49. Bc2 {[%clk
0:00:43.7]} 49... h4 {[%clk 0:00:14.5]} 50. Nd4 {[%clk 0:00:43.6]} 50... h3
{[%clk 0:00:14.4]} 51. Bxf5 {[%clk 0:00:41.2]} 51... h2 {[%clk 0:00:14.3]} 52.
Be4 {[%clk 0:00:41.9]} 52... Re1+ {[%clk 0:00:14.3]} 53. Ne2 {[%clk 0:00:42.4]}
53... Ke7 {[%clk 0:00:09.6]} 54. Kd2 {[%clk 0:00:36]} 54... h1=Q {[%clk
0:00:09.3]} 55. Bxh1 {[%clk 0:00:36.3]} 55... Rxh1 {[%clk 0:00:10.2]} 56. Kd3
{[%clk 0:00:30.1]} 56... Kd6 {[%clk 0:00:09.1]} 57. Kc4 {[%clk 0:00:28.3]} 57...
Kc6 {[%clk 0:00:07.7]} 58. f5 {[%clk 0:00:27.8]} 58... Rh4+ {[%clk 0:00:08.3]}
59. Nd4+ {[%clk 0:00:27.8]} 59... Kd6 {[%clk 0:00:08.5]} 60. Kc3 {[%clk
0:00:26.3]} 60... Kd5 {[%clk 0:00:07.8]} 61. Nc2 {[%clk 0:00:24.2]} 61... Kc5
{[%clk 0:00:07.3]} 62. a3 {[%clk 0:00:22.6]} 62... Rh3+ {[%clk 0:00:07.8]} 63.
Kb2 {[%clk 0:00:22.5]} 63... a4 {[%clk 0:00:07.5]} 64. Nb4 {[%clk 0:00:21.9]}
64... Kc4 {[%clk 0:00:07.7]} 65. f6 {[%clk 0:00:21.8]} 65... Rh2+ {[%clk
0:00:07.9]} 66. Kc1 {[%clk 0:00:20.6]} 66... Rf2 {[%clk 0:00:07.9]} 67. Nc2
{[%clk 0:00:18.4]} 67... Rxf6 {[%clk 0:00:07.7]} 68. Kb2 {[%clk 0:00:19.2]}
68... Rb6+ {[%clk 0:00:07.5]} 69. Ka2 {[%clk 0:00:19.2]} 69... Kc3 {[%clk
0:00:07.6]} 70. Nb4 {[%clk 0:00:19.6]} 70... Rh6 {[%clk 0:00:08.2]} 71. Nd5+
{[%clk 0:00:19.9]} 71... Kc4 {[%clk 0:00:08.7]} 72. Ne3+ {[%clk 0:00:18.7]}
72... Kd3 {[%clk 0:00:09.3]} 73. Nd5 {[%clk 0:00:19.2]} 73... Rh2+ {[%clk
0:00:09.9]} 74. Kb1 {[%clk 0:00:19.2]} 74... Kc4 {[%clk 0:00:10]} 75. Nb4 {[%clk
0:00:17.8]} 75... Kb3 {[%clk 0:00:10.4]} 76. Ka1 {[%clk 0:00:16.6]} 76... Rh1#
{[%clk 0:00:10.3]} 0-1

[Event "Late-Titled-Tuesday-Blitz-March-19-2024"]
[Site "Chess.com"]
[Date "2024.03.19"]
[Round "2"]
[White "Kavyev_Ruslan"]
[Black "protectiago"]
[Result "1-0"]
[WhiteElo "2467"]
[BlackElo "2066"]
[TimeControl "180+1"]
[EndTime "14:19:20 PDT"]
[Termination "Kavyev_Ruslan won by resignation"]

1. d4 {[%clk 0:03:00.9]} 1... Nf6 {[%clk 0:02:59.2]} 2. Nf3 {[%clk 0:03:01.3]}
2... g6 {[%clk 0:02:51.7]} 3. c4 {[%clk 0:03:01.4]} 3... Bg7 {[%clk 0:02:50.3]}
4. g3 {[%clk 0:03:02]} 4... O-O {[%clk 0:02:49.8]} 5. Bg2 {[%clk 0:03:02.5]}
5... d5 {[%clk 0:02:49.9]} 6. O-O {[%clk 0:03:01.3]} 6... c6 {[%clk 0:02:46.7]}
7. Qb3 {[%clk 0:02:44.7]} 7... Qb6 {[%clk 0:02:41.3]} 8. c5 {[%clk 0:02:44.1]}
8... Qd8 {[%clk 0:02:32.1]} 9. Nc3 {[%clk 0:02:38.4]} 9... Nbd7 {[%clk
0:02:30.6]} 10. Bf4 {[%clk 0:02:32.9]} 10... Nh5 {[%clk 0:02:26]} 11. Bd2 {[%clk
0:02:33.2]} 11... e5 {[%clk 0:02:22.3]} 12. dxe5 {[%clk 0:02:25.8]} 12... Nxe5
{[%clk 0:02:19.9]} 13. Nxe5 {[%clk 0:02:19.9]} 13... Bxe5 {[%clk 0:02:19.8]} 14.
Rad1 {[%clk 0:02:14.7]} 14... Re8 {[%clk 0:02:07.7]} 15. e3 {[%clk 0:02:14.1]}
15... Bg7 {[%clk 0:02:05.6]} 16. Ne2 {[%clk 0:02:13]} 16... Qe7 {[%clk 0:01:48]}
17. Bc3 {[%clk 0:02:12.7]} 17... Qxc5 {[%clk 0:01:41.6]} 18. Bxg7 {[%clk
0:02:01]} 18... Nxg7 {[%clk 0:01:41]} 19. Rc1 {[%clk 0:02:01.7]} 19... Qe7
{[%clk 0:01:40]} 20. Qc3 {[%clk 0:01:58.9]} 20... Bg4 {[%clk 0:01:25.8]} 21. Nd4
{[%clk 0:01:58.8]} 21... Ne6 {[%clk 0:01:17.6]} 22. b4 {[%clk 0:01:52.1]} 22...
Nxd4 {[%clk 0:01:16]} 23. Qxd4 {[%clk 0:01:53]} 23... Qe5 {[%clk 0:01:13.2]} 24.
Qxg4 {[%clk 0:01:52.1]} 24... f5 {[%clk 0:00:59.3]} 25. Qf4 {[%clk 0:01:45.3]}
25... Qb2 {[%clk 0:00:50.7]} 26. Qc7 {[%clk 0:01:34.9]} 26... Rab8 {[%clk
0:00:40.5]} 27. Qa5 {[%clk 0:01:33.7]} 27... a6 {[%clk 0:00:36.6]} 28. Rb1
{[%clk 0:01:17.6]} 28... Qc2 {[%clk 0:00:34.3]} 29. Qa3 {[%clk 0:01:15.8]} 29...
Rbd8 {[%clk 0:00:18.8]} 30. Qb2 {[%clk 0:01:16.3]} 30... Qd3 {[%clk 0:00:17.7]}
31. Rfd1 {[%clk 0:01:15.6]} 31... Qb5 {[%clk 0:00:17.7]} 32. Qb3 {[%clk
0:01:14.9]} 32... Qb6 {[%clk 0:00:17.6]} 33. a4 {[%clk 0:01:14.3]} 33... Kh8
{[%clk 0:00:15.9]} 34. b5 {[%clk 0:01:10.9]} 34... axb5 {[%clk 0:00:15.1]} 35.
axb5 {[%clk 0:01:11.3]} 35... h6 {[%clk 0:00:13.2]} 36. bxc6 {[%clk 0:01:11]}
36... Qxb3 {[%clk 0:00:12.8]} 37. Rxb3 {[%clk 0:01:10.9]} 37... bxc6 {[%clk
0:00:13.4]} 38. Rc3 {[%clk 0:01:11.6]} 38... Rd6 {[%clk 0:00:13]} 39. Rdc1
{[%clk 0:01:09]} 39... Ree6 {[%clk 0:00:13.2]} 40. h4 {[%clk 0:01:03.9]} 40...
Kg7 {[%clk 0:00:13.3]} 41. Bf3 {[%clk 0:01:04]} 41... Kf6 {[%clk 0:00:13.3]} 42.
Kg2 {[%clk 0:01:04.4]} 42... Ke5 {[%clk 0:00:12.4]} 43. Rc5 {[%clk 0:01:04.8]}
43... Kf6 {[%clk 0:00:12.1]} 44. Ra1 {[%clk 0:01:03.7]} 44... Ke5 {[%clk
0:00:12]} 45. Ra6 {[%clk 0:01:04]} 45... Kf6 {[%clk 0:00:11.6]} 46. Rc3 {[%clk
0:01:03.6]} 46... Ke5 {[%clk 0:00:11.8]} 47. Ra7 {[%clk 0:01:04.1]} 47... Kf6
{[%clk 0:00:11.5]} 48. Rh7 {[%clk 0:01:03.8]} 48... h5 {[%clk 0:00:05.9]} 49.
Rb7 {[%clk 0:01:02.3]} 49... Ke5 {[%clk 0:00:05.8]} 50. Ra3 {[%clk 0:01:01.1]}
50... Kf6 {[%clk 0:00:05.4]} 51. Raa7 {[%clk 0:01:01]} 51... Ke5 {[%clk
0:00:04.7]} 52. Rc7 {[%clk 0:00:59.3]} 52... d4 {[%clk 0:00:04.7]} 53. exd4+
{[%clk 0:00:58.1]} 53... Kxd4 {[%clk 0:00:04.7]} 54. Ra4+ {[%clk 0:00:52.2]}
54... Kc5 {[%clk 0:00:04.7]} 55. Rca7 {[%clk 0:00:50.5]} 55... Kb6 {[%clk
0:00:03.7]} 56. R7a6+ {[%clk 0:00:48.9]} 56... Kb5 {[%clk 0:00:03.7]} 57. R6a5+
{[%clk 0:00:49.4]} 57... Kb6 {[%clk 0:00:03.8]} 58. Ra8 {[%clk 0:00:47.7]} 58...
c5 {[%clk 0:00:03.4]} 59. Rc4 {[%clk 0:00:47.3]} 59... Kb5 {[%clk 0:00:03.1]}
60. Rc1 {[%clk 0:00:44.3]} 60... c4 {[%clk 0:00:03.1]} 61. Rb8+ {[%clk
0:00:43.7]} 61... Rb6 {[%clk 0:00:02.6]} 62. Rxb6+ {[%clk 0:00:42.5]} 62... Rxb6
{[%clk 0:00:02.6]} 63. Be2 {[%clk 0:00:42]} 63... Rc6 {[%clk 0:00:02.9]} 64. Kf3
{[%clk 0:00:40.8]} 64... Kb4 {[%clk 0:00:03.2]} 65. Rxc4+ {[%clk 0:00:19.1]}
65... Rxc4 {[%clk 0:00:02.9]} 66. Bxc4 {[%clk 0:00:20]} 66... Kxc4 {[%clk
0:00:03.4]} 67. Kf4 {[%clk 0:00:20.7]} 67... Kd3 {[%clk 0:00:03.9]} 68. Kg5
{[%clk 0:00:20.7]} 68... Ke2 {[%clk 0:00:04.4]} 69. Kxg6 {[%clk 0:00:21.3]}
69... Kxf2 {[%clk 0:00:05.1]} 70. Kxf5 {[%clk 0:00:22]} 70... Kxg3 {[%clk
0:00:05.4]} 71. Kg5 {[%clk 0:00:22.7]} 71... Kh3 {[%clk 0:00:05.6]} 72. Kxh5
{[%clk 0:00:22.8]} 72... Kg3 {[%clk 0:00:05.4]} 73. Kg5 {[%clk 0:00:23.4]} 1-0